[Event "World Junior U20 Open 2018"]
[Site "Gebze"]
[Date "2018.09.07"]
[Round "3.34"]
[White "Garidmagnai, Byambasuren"]
[Black "Barseghyan, Harutyun"]
[Result "1/2-1/2"]
[ECO "A32"]
[WhiteElo "2287"]
[BlackElo "2466"]
[Annotator "ChessBase"]
[PlyCount "128"]
[EventDate "2018.09.05"]
[EventType "swiss"]
[EventCountry "TUR"]
[SourceTitle "playchess.com"]
[Source "ChessBase"]
[SourceQuality "1"]
[TimeControl "40/5400+30:1800+30"]

1. d4 {[%emt 0:05:30]} Nf6 {[%emt 0:00:30]} 2. c4 {[%emt 0:00:30]} e6 {[%emt 0:00:30]} 3. Nf3 {[%emt 0:02:30]} c5 {[%emt 0:04:30]} 4. Nc3 {[%emt 0:06:30]} cxd4 {[%emt 0:02:30]} 5. Nxd4 {[%emt 0:00:30]} a6 {[%emt 0:00:30]} 6. a3 {[%emt 0:07:30]} b6 {[%emt 0:00:00]} 7. e4 {[%emt 0:00:30]} d6 {[%emt 0:00:00]} 8. Be2 {[%emt 0:00:30]} Bb7 {[%emt 0:00:30]} 9. f3 {[%emt 0:01:30]} Be7 {[%emt 0:00:30]} 10. O-O {[%emt 0:00:00]} O-O {[%emt 0:00:30]} 11. Be3 {[%emt 0:03:00]} Qc7 {[%emt 0:00:00]} 12. Rc1 {[%emt 0:00:30]} Nbd7 {[%emt 0:00:00]} 13. Qe1 {[%emt 0:01:30]} Rfc8 {[%emt 0:05:30]} 14. Qf2 {[%emt 0:02:30]} Qd8 {[%emt 0:02:30]} 15. Nb3 {[%emt 0:03:30]} Rab8 {[%emt 0:04:30]} 16. Rfd1 {[%emt 0:00:30]} Ba8 {[%emt 0:00:30]} 17. Kh1 {[%emt 0:04:30]} Ne5 {[%emt 0:02:30]} 18. Nd2 {[%emt 0:02:30]} Nfd7 {[%emt 0:01:30]} 19. b4 {[%emt 0:02:30]} Qf8 {[%emt 0:04:30]} 20. Na4 {[%emt 0:03:30]} b5 {[%emt 0:06:30]} 21. cxb5 {[%emt 0:01:30]} axb5 {[%emt 0:00:30]} 22. Nc3 {[%emt 0:00:30]} Nc4 {[%emt 0:07:30]} 23. Nxb5 {[%emt 0:08:30]} Nxe3 {[%emt 0:00:30]} 24. Qxe3 {[%emt 0:00:00]} Qd8 {[%emt 0:07:30]} 25. Nb3 {[%emt 0:02:00]} Rxc1 {[%emt 0:11:30]} 26. Qxc1 {[%emt 0:05:30]} d5 {[%emt 0:11:30]} 27. Qc7 {[%emt 0:03:30]} Qe8 {[%emt 0:02:30]} 28. Nd6 {[%emt 0:04:30]} Qd8 {[%emt 0:01:30]} 29. Nb5 {[%emt 0:01:30]} Qe8 {[%emt 0:00:00]} 30. exd5 {[%emt 0:00:30]} Bxd5 {[%emt 0:01:00]} 31. N3d4 {[%emt 0:00:30]} Rc8 {[%emt 0:03:33]} 32. Qg3 {[%emt 0:00:30]} Qf8 {[%emt 0:00:27]} 33. Nf5 {[%emt 0:00:30]} exf5 {[%emt 0:03:59]} 34. Rxd5 {[%emt 0:00:30]} Nf6 {[%emt 0:00:39]} 35. Rd1 {[%emt 0:00:30]} g6 {[%emt 0:00:18]} 36. Qe5 {[%emt 0:01:30]} Nh5 {[%emt 0:00:36]} 37. f4 {[%emt 0:02:30]} Bf6 {[%emt 0:04:24]} 38. Qe3 {[%emt 0:01:30]} Re8 {[%emt 0:01:20]} 39. Qf2 {[%emt 0:01:30]} Nxf4 {[%emt 0:01:34]} 40. Bc4 {[%emt 0:00:00]} Ne6 {[%emt 0:00:00]} 41. Bxe6 {[%emt 0:10:00]} Rxe6 {[%emt 0:08:40]} 42. Nc7 {[%emt 0:02:30]} Re4 {[%emt 0:01:30]} 43. Nd5 {[%emt 0:01:30]} Be5 {[%emt 0:00:30]} 44. a4 {[%emt 0:01:30]} Qh6 {[%emt 0:00:30]} 45. g3 {[%emt 0:03:30]} Qh5 {[%emt 0:08:30]} 46. Rd2 {[%emt 0:00:30]} Qg4 {[%emt 0:06:08]} 47. Kg2 {[%emt 0:04:30]} h5 {[%emt 0:06:38]} 48. Qf3 {[%emt 0:07:30]} Qg5 {[%emt 0:00:10]} 49. Re2 {[%emt 0:08:46]} h4 {[%emt 0:00:06]} 50. Rxe4 {[%emt 0:00:58]} fxe4 {[%emt 0:00:05]} 51. Qxe4 {[%emt 0:00:20]} hxg3 {[%emt 0:03:33]} 52. hxg3 {[%emt 0:00:08]} Qxg3+ {[%emt 0:00:24]} 53. Kf1 {[%emt 0:00:06]} f5 {[%emt 0:03:19]} 54. Qe3 {[%emt 0:03:27]} Qh2 {[%emt 0:00:17]} 55. Qf3 {[%emt 0:01:28]} Qa2 {[%emt 0:02:14]} 56. a5 {[%emt 0:00:15]} Kg7 {[%emt 0:00:38]} 57. Qd3 {[%emt 0:00:41]} Qa1+ {[%emt 0:01:13]} 58. Ke2 {[%emt 0:00:39]} Qa2+ {[%emt 0:01:07]} 59. Ke3 {[%emt 0:06:27]} Qa1 {[%emt 0:00:04]} 60. Qd2 {[%emt 0:02:20]} g5 {[%emt 0:00:59]} 61. Ke2 {[%emt 0:01:36]} f4 {[%emt 0:01:21]} 62. Kf3 {[%emt 0:00:43]} Qh1+ {[%emt 0:00:39]} 63. Kg4 {[%emt 0:00:09]} Qe4 {[%emt 0:00:45]} 64. Nc3 {[%emt 0:03:15]} Kg6 {[%emt 0:03:47]} 1/2-1/2

[Event "World Junior U20 Open 2018"]
[Site "Gebze"]
[Date "2018.09.07"]
[Round "3.42"]
[White "Secheres, Adrian-Simion"]
[Black "Zhao, Chenxi"]
[Result "1/2-1/2"]
[ECO "B00"]
[WhiteElo "2408"]
[BlackElo "2275"]
[Annotator "ChessBase"]
[PlyCount "109"]
[EventDate "2018.09.05"]
[EventType "swiss"]
[EventCountry "TUR"]
[SourceTitle "playchess.com"]
[Source "ChessBase"]
[SourceQuality "1"]
[TimeControl "40/5400+30:1800+30"]

1. d4 {[%emt 0:00:30]} b6 {[%emt 0:00:30]} 2. e4 {[%emt 0:00:30]} Bb7 {[%emt 0:00:30]} 3. Bd3 {[%emt 0:01:30]} Nf6 {[%emt 0:01:30]} 4. Nd2 {[%emt 0:00:30]} d6 {[%emt 0:02:30]} 5. Ngf3 {[%emt 0:01:30]} g6 {[%emt 0:01:30]} 6. O-O {[%emt 0:01:30]} Bg7 {[%emt 0:00:30]} 7. Qe2 {[%emt 0:05:30]} O-O {[%emt 0:00:30]} 8. Rd1 {[%emt 0:00:30]} Nc6 {[%emt 0:01:30]} 9. c3 {[%emt 0:10:30]} e5 {[%emt 0:00:30]} 10. Nf1 {[%emt 0:03:30]} exd4 {[%emt 0:00:30]} 11. cxd4 {[%emt 0:00:30]} Re8 {[%emt 0:07:30]} 12. Bg5 {[%emt 0:18:30]} h6 {[%emt 0:01:30]} 13. Bxf6 {[%emt 0:00:30]} Qxf6 {[%emt 0:00:30]} 14. Ba6 {[%emt 0:01:30]} Bxa6 {[%emt 0:10:30]} 15. Qxa6 {[%emt 0:00:30]} Nb4 {[%emt 0:04:30]} 16. Qa4 {[%emt 0:04:30]} a5 {[%emt 0:02:30]} 17. a3 {[%emt 0:00:30]} Na6 {[%emt 0:00:30]} 18. Qc6 {[%emt 0:05:30]} Qe7 {[%emt 0:00:30]} 19. Ng3 {[%emt 0:01:30]} Ra7 {[%emt 0:01:30]} 20. Rac1 {[%emt 0:04:30]} Nb8 {[%emt 0:00:30]} 21. Qb5 {[%emt 0:00:30]} Qd7 {[%emt 0:04:30]} 22. Qb3 {[%emt 0:02:30]} a4 {[%emt 0:02:30]} 23. Qd3 {[%emt 0:00:30]} c5 {[%emt 0:01:30]} 24. Rc2 {[%emt 0:03:30]} Qb7 {[%emt 0:13:30]} 25. h4 {[%emt 0:12:58]} h5 {[%emt 0:03:30]} 26. e5 {[%emt 0:00:36]} Nc6 {[%emt 0:03:30]} 27. Ne4 {[%emt 0:02:12]} dxe5 {[%emt 0:14:45]} 28. dxc5 {[%emt 0:06:19]} Rb8 {[%emt 0:02:50]} 29. cxb6 {[%emt 0:05:08]} Qxb6 {[%emt 0:00:20]} 30. Rdc1 {[%emt 0:00:05]} Ne7 {[%emt 0:01:16]} 31. Nfg5 {[%emt 0:00:33]} Rd8 {[%emt 0:03:51]} 32. Qc4 {[%emt 0:01:48]} Nf5 {[%emt 0:00:30]} 33. Nf3 {[%emt 0:00:22]} Nd4 {[%emt 0:04:01]} 34. Nxd4 {[%emt 0:00:58]} exd4 {[%emt 0:00:08]} 35. Qd3 {[%emt 0:00:29]} Bh6 {[%emt 0:02:16]} 36. Rd1 {[%emt 0:00:57]} Bg7 {[%emt 0:01:50]} 37. Rdc1 {[%emt 0:01:31]} Bh6 {[%emt 0:00:02]} 38. Rd1 {[%emt 0:00:00]} Bg7 {[%emt 0:00:04]} 39. Qc4 {[%emt 0:03:58]} Re8 {[%emt 0:02:53]} 40. Ng5 {[%emt 0:00:00]} Rae7 {[%emt 0:00:00]} 41. Nf3 {[%emt 0:02:36]} Qb3 {[%emt 0:08:44]} 42. Rd3 {[%emt 0:07:30]} Qxc4 {[%emt 0:00:30]} 43. Rxc4 {[%emt 0:00:30]} Re2 {[%emt 0:00:30]} 44. Rb4 {[%emt 0:07:49]} Rc8 {[%emt 0:01:30]} 45. Rxa4 {[%emt 0:02:47]} Rxb2 {[%emt 0:02:30]} 46. Rb4 {[%emt 0:03:41]} Rc1+ {[%emt 0:05:30]} 47. Kh2 {[%emt 0:00:06]} Rxf2 {[%emt 0:01:05]} 48. Rb8+ {[%emt 0:01:35]} Kh7 {[%emt 0:01:00]} 49. Rb7 {[%emt 0:00:17]} Rc3 {[%emt 0:11:21]} 50. Ng5+ {[%emt 0:03:27]} Kh6 {[%emt 0:00:57]} 51. Kg1 {[%emt 0:01:33]} Rxd3 {[%emt 0:02:03]} 52. Kxf2 {[%emt 0:00:16]} Rxa3 {[%emt 0:00:44]} 53. Nxf7+ {[%emt 0:00:30]} Kh7 {[%emt 0:00:00]} 54. Ng5+ {[%emt 0:00:08]} Kh6 {[%emt 0:00:00]} 55. Nf7+ {[%emt 0:00:00]} 1/2-1/2

[Event "World Junior U20 Open 2018"]
[Site "Gebze"]
[Date "2018.09.07"]
[Round "3.43"]
[White "Samani, Yamac"]
[Black "Lagunow, Raphael"]
[Result "0-1"]
[ECO "B70"]
[WhiteElo "2226"]
[BlackElo "2403"]
[Annotator "ChessBase"]
[PlyCount "130"]
[EventDate "2018.09.05"]
[EventType "swiss"]
[EventCountry "TUR"]
[SourceTitle "playchess.com"]
[Source "ChessBase"]
[SourceQuality "1"]
[TimeControl "40/5400+30:1800+30"]

1. e4 {[%emt 0:00:30]} c5 {[%emt 0:01:30]} 2. Nf3 {[%emt 0:00:30]} Nc6 {[%emt 0:00:30]} 3. Nc3 {[%emt 0:00:30]} g6 {[%emt 0:03:30]} 4. d4 {[%emt 0:00:30]} cxd4 {[%emt 0:00:30]} 5. Nxd4 {[%emt 0:00:30]} Bg7 {[%emt 0:00:30]} 6. Nde2 {[%emt 0:01:30]} Nf6 {[%emt 0:01:30]} 7. g3 {[%emt 0:00:00]} O-O {[%emt 0:02:30]} 8. Bg2 {[%emt 0:00:00]} d6 {[%emt 0:00:30]} 9. O-O {[%emt 0:00:30]} Rb8 {[%emt 0:01:30]} 10. a4 {[%emt 0:00:30]} a6 {[%emt 0:00:30]} 11. h3 {[%emt 0:01:30]} Nd7 {[%emt 0:07:30]} 12. Be3 {[%emt 0:10:30]} b5 {[%emt 0:06:30]} 13. axb5 {[%emt 0:05:30]} axb5 {[%emt 0:06:30]} 14. Nd4 {[%emt 0:04:30]} Bxd4 {[%emt 0:00:30]} 15. Bxd4 {[%emt 0:03:30]} b4 {[%emt 0:00:30]} 16. Ne2 {[%emt 0:04:30]} Nxd4 {[%emt 0:00:30]} 17. Nxd4 {[%emt 0:01:30]} Qb6 {[%emt 0:01:30]} 18. Qd2 {[%emt 0:08:30]} Ba6 {[%emt 0:00:30]} 19. Rfe1 {[%emt 0:04:30]} Rfc8 {[%emt 0:04:30]} 20. Rad1 {[%emt 0:07:30]} Rc7 {[%emt 0:01:30]} 21. Qg5 {[%emt 0:04:30]} Ne5 {[%emt 0:19:30]} 22. Kh2 {[%emt 0:02:30]} Re8 {[%emt 0:05:30]} 23. f4 {[%emt 0:06:30]} Nc4 {[%emt 0:03:30]} 24. b3 {[%emt 0:03:30]} Rc5 {[%emt 0:01:30]} 25. Qg4 {[%emt 0:02:30]} Bc8 {[%emt 0:03:30]} 26. Qe2 {[%emt 0:06:30]} Na3 {[%emt 0:00:30]} 27. e5 {[%emt 0:05:31]} dxe5 {[%emt 0:01:30]} 28. fxe5 {[%emt 0:00:08]} Ba6 {[%emt 0:00:30]} 29. Qe4 {[%emt 0:00:55]} Qc7 {[%emt 0:02:30]} 30. Rd2 {[%emt 0:02:00]} Rc8 {[%emt 0:08:11]} 31. Qh4 {[%emt 0:07:29]} Rd8 {[%emt 0:07:41]} 32. Rf2 {[%emt 0:00:52]} h5 {[%emt 0:06:51]} 33. Qf4 {[%emt 0:01:48]} e6 {[%emt 0:00:02]} 34. Nc6 {[%emt 0:03:33]} Rd7 {[%emt 0:00:14]} 35. Nxb4 {[%emt 0:00:15]} Bb7 {[%emt 0:00:06]} 36. Bxb7 {[%emt 0:00:57]} Qxb7 {[%emt 0:00:01]} 37. Qe4 {[%emt 0:00:34]} Qa7 {[%emt 0:01:49]} 38. Ref1 {[%emt 0:00:46]} Rc3 {[%emt 0:00:46]} 39. Nc6 {[%emt 0:01:04]} Qc5 {[%emt 0:00:29]} 40. Qb4 {[%emt 0:00:00]} Qxc6 {[%emt 0:00:00]} 41. Qxa3 {[%emt 0:02:38]} h4 {[%emt 0:11:50]} 42. gxh4 {[%emt 0:01:30]} Qe4 {[%emt 0:01:30]} 43. Qa4 {[%emt 0:03:30]} Qxe5+ {[%emt 0:00:43]} 44. Qf4 {[%emt 0:01:30]} Qxf4+ {[%emt 0:01:42]} 45. Rxf4 {[%emt 0:00:30]} Rxc2+ {[%emt 0:00:00]} 46. Kg3 {[%emt 0:09:48]} Rb2 {[%emt 0:02:43]} 47. R1f3 {[%emt 0:01:29]} Rb7 {[%emt 0:07:30]} 48. h5 {[%emt 0:04:56]} gxh5 {[%emt 0:05:52]} 49. Kh4 {[%emt 0:01:06]} f5 {[%emt 0:00:42]} 50. Rg3+ {[%emt 0:02:55]} Kf7 {[%emt 0:00:35]} 51. Kxh5 {[%emt 0:02:28]} R2xb3 {[%emt 0:03:00]} 52. Rff3 {[%emt 0:02:12]} Rxf3 {[%emt 0:00:56]} 53. Rxf3 {[%emt 0:00:30]} Kf6 {[%emt 0:00:00]} 54. Kh4 {[%emt 0:00:01]} Rb4+ {[%emt 0:00:15]} 55. Kg3 {[%emt 0:00:14]} Kg5 {[%emt 0:00:28]} 56. Ra3 {[%emt 0:00:41]} e5 {[%emt 0:00:22]} 57. Rc3 {[%emt 0:00:31]} f4+ {[%emt 0:00:19]} 58. Kf3 {[%emt 0:01:03]} e4+ {[%emt 0:00:09]} 59. Kf2 {[%emt 0:00:00]} Kh4 {[%emt 0:00:38]} 60. Kf1 {[%emt 0:00:31]} Rb1+ {[%emt 0:00:29]} 61. Kf2 {[%emt 0:00:30]} Rb2+ {[%emt 0:00:00]} 62. Kf1 {[%emt 0:00:00]} e3 {[%emt 0:00:26]} 63. Rc8 {[%emt 0:00:58]} Kg3 {[%emt 0:00:42]} 64. Rg8+ {[%emt 0:00:59]} Kf3 {[%emt 0:00:06]} 65. Kg1 {[%emt 0:00:00]} e2 {[%emt 0:00:19]} 0-1

[Event "World Junior U20 Open 2018"]
[Site "Gebze"]
[Date "2018.09.07"]
[Round "3.45"]
[White "Ozer, Omer Faruk"]
[Black "Nalbant, Tuna Onat"]
[Result "1-0"]
[ECO "B92"]
[WhiteElo "2388"]
[BlackElo "2241"]
[Annotator "NA"]
[PlyCount "99"]
[EventDate "2018.09.05"]
[EventType "swiss"]
[EventCountry "TUR"]
[SourceTitle "playchess.com"]
[Source "ChessBase"]
[SourceQuality "1"]
[TimeControl "40/5400+30:1800+30"]

1. e4 {[%emt 0:02:30]} c5 {[%emt 0:00:30]} 2. Nf3 {[%emt 0:07:30]} d6 {[%emt 0:01:30]} 3. d4 {[%emt 0:00:30]} cxd4 {[%emt 0:00:00]} 4. Nxd4 {[%emt 0:00:00]} Nf6 {[%emt 0:00:00]} 5. Nc3 {[%emt 0:00:00]} a6 {[%emt 0:00:30]} 6. Be2 {[%emt 0:02:30]} e5 {[%emt 0:05:30]} 7. Nb3 {[%emt 0:01:30]} Be6 {[%emt 0:01:30]} 8. f4 {[%emt 0:00:30]} Nbd7 {[%emt 0:21:30]} 9. f5 {[%emt 0:16:30]} Bxb3 {[%emt 0:00:30]} 10. axb3 {[%emt 0:00:00]} Qb6 {[%emt 0:20:30]} 11. Bc4 {[%emt 0:01:00]} Be7 {[%emt 0:01:30]} 12. Qe2 {[%emt 0:01:30]} ({Ein No Go ist} 12. Nd5 $6 Nxd5 13. Qxd5 O-O $11) 12... Rd8 {[%emt 0:03:30]} 13. Be3 {[%emt 0:20:30]} Qc7 {[%emt 0:00:30]} 14. Rd1 {[%emt 0:00:00]} b5 {[%emt 0:06:30]} 15. Nd5 {[%emt 0:01:00]} Nxd5 {[%emt 0:11:30]} 16. Bxd5 {[%emt 0:00:00]} O-O {[%emt 0:02:30]} 17. O-O {[%emt 0:01:00]} Rc8 {[%emt 0:00:30]} 18. c3 $16 {[%emt 0:01:30]} Nf6 {[%emt 0:01:48]} 19. Kh1 {[%emt 0:03:30]} Qd8 {[%emt 0:05:16]} 20. Rf3 {[%emt 0:03:30]} Nxd5 {[%emt 0:07:53]} 21. Rxd5 {[%emt 0:00:30]} Bg5 {[%emt 0:00:55]} 22. Bf2 {[%emt 0:01:30]} g6 {[%emt 0:02:17]} 23. Rfd3 {[%emt 0:01:30]} Rc6 {[%emt 0:00:35]} 24. Bc5 {[%emt 0:04:30]} Re8 {[%emt 0:02:08]} 25. Ba3 {[%emt 0:05:30]} Bf4 {[%emt 0:00:53]} 26. g3 {[%emt 0:00:30]} Bg5 {[%emt 0:00:20]} 27. Qf3 {[%emt 0:01:30]} gxf5 {[%emt 0:01:08]} 28. Rxd6 {[%emt 0:01:30]} Rxd6 {[%emt 0:00:57]} 29. Rxd6 {[%emt 0:00:00]} Qc8 {[%emt 0:00:08]} 30. exf5 {[%emt 0:01:00]} Be7 {[%emt 0:01:21]} 31. Rc6 {[%emt 0:03:11]} Qd7 {[%emt 0:00:25]} 32. Bxe7 {[%emt 0:02:30]} Qxe7 {[%emt 0:00:49]} 33. f6 {[%emt 0:02:56]} Qf8 {[%emt 0:00:01]} 34. Qe4 {[%emt 0:00:35]} Qh6 {[%emt 0:01:00]} 35. Rd6 {[%emt 0:01:15]} Qg5 {[%emt 0:00:32]} 36. Kg2 {[%emt 0:00:30]} h6 {[%emt 0:00:27]} 37. h4 {[%emt 0:00:23]} Qh5 {[%emt 0:00:29]} 38. Rd7 {[%emt 0:01:55]} Rf8 {[%emt 0:00:25]} 39. Rd5 {[%emt 0:00:33]} Re8 {[%emt 0:00:52]} 40. Rd7 {[%emt 0:00:00]} Rf8 {[%emt 0:00:00]} 41. Re7 {[%emt 0:03:42]} Qg6 {[%emt 0:11:21]} 42. Qxg6+ {[%emt 0:01:30]} fxg6 {[%emt 0:00:30]} 43. Rg7+ {[%emt 0:00:00]} Kh8 {[%emt 0:00:30]} 44. Rxg6 {[%emt 0:00:00]} Kh7 {[%emt 0:00:30]} 45. h5 {[%emt 0:00:00]} a5 {[%emt 0:04:15]} 46. Kf3 {[%emt 0:00:00]} a4 {[%emt 0:00:03]} 47. Ke4 {[%emt 0:00:00]} Re8 {[%emt 0:02:30]} 48. Rg7+ {[%emt 0:01:00]} Kh8 {[%emt 0:00:02]} 49. bxa4 {[%emt 0:00:00]} bxa4 {[%emt 0:00:30]} 50. f7 {[%emt 0:00:00]} 1-0

[Event "World Junior U20 Open 2018"]
[Site "Gebze"]
[Date "2018.09.07"]
[Round "3.46"]
[White "Can, Melih Kaan"]
[Black "Agmanov, Zhandos"]
[Result "0-1"]
[ECO "A47"]
[WhiteElo "2195"]
[BlackElo "2379"]
[Annotator "NA"]
[PlyCount "82"]
[EventDate "2018.09.05"]
[EventType "swiss"]
[EventCountry "TUR"]
[SourceTitle "playchess.com"]
[Source "ChessBase"]
[SourceQuality "1"]
[TimeControl "40/5400+30:1800+30"]

1. d4 {[%emt 0:00:30]} Nf6 {[%emt 0:01:30]} 2. Nf3 {[%emt 0:00:30]} e6 {[%emt 0:00:30]} 3. Bf4 {[%emt 0:00:30]} b6 {[%emt 0:07:30]} 4. e3 {[%emt 0:02:30]} Bb7 {[%emt 0:00:30]} 5. Nbd2 {[%emt 0:02:30]} Be7 {[%emt 0:03:30]} 6. h3 {[%emt 0:05:30]} c5 {[%emt 0:01:30]} 7. c3 {[%emt 0:02:30]} O-O {[%emt 0:00:30]} 8. Bd3 {[%emt 0:00:30]} d6 {[%emt 0:01:30]} 9. Qe2 {[%emt 0:01:30]} Nc6 {[%emt 0:00:30]} 10. O-O {[%emt 0:09:30]} Re8 {[%emt 0:04:30]} 11. e4 {[%emt 0:06:30]} Nh5 {[%emt 0:30:30]} 12. Bh2 {[%emt 0:01:30]} g6 {[%emt 0:00:30]} 13. a3 {[%emt 0:03:30]} Bf8 {[%emt 0:03:30]} 14. e5 {[%emt 0:59:30]} cxd4 {[%emt 0:14:30]} 15. cxd4 {[%emt 0:00:00]} dxe5 {[%emt 0:00:30]} 16. dxe5 {[%emt 0:00:00]} Nd4 {[%emt 0:00:00]} 17. Nxd4 {[%emt 0:00:00]} Qxd4 {[%emt 0:00:00]} 18. Be4 $11 {[%emt 0:00:00]} Rad8 {[%emt 0:02:30]} 19. Rfd1 {[%emt 0:00:00]} Bh6 {[%emt 0:01:30]} 20. Bxb7 {[%emt 0:00:00]} Bxd2 {[%emt 0:02:30]} 21. b4 {[%emt 0:00:00]} Qc3 {[%emt 0:07:32]} 22. Qa6 {[%emt 0:00:00]} Nf4 {[%emt 0:01:13]} 23. Bxf4 {[%emt 0:00:00]} Bxf4 {[%emt 0:00:02]} 24. Qxa7 {[%emt 0:00:00]} Qc7 {[%emt 0:09:04]} 25. Qa6 {[%emt 0:00:00]} Bxe5 {[%emt 0:00:14]} 26. Rac1 {[%emt 0:00:00]} Bf4 {[%emt 0:00:47]} 27. Rb1 {[%emt 0:00:00]} Be5 {[%emt 0:02:25]} 28. Bf3 {[%emt 0:01:19]} Bd4 {[%emt 0:00:11]} 29. Rbc1 {[%emt 0:00:31]} Qf4 {[%emt 0:00:16]} 30. Qb7 {[%emt 0:02:03]} e5 {[%emt 0:00:34]} 31. Qe4 {[%emt 0:02:51]} Qxe4 {[%emt 0:00:38]} 32. Bxe4 {[%emt 0:00:30]} Bb2 33. Rxd8 Rxd8 34. Rc6 Bxa3 35. Rxb6 Rd4 36. Bc2 Bxb4 37. Rb7 Bc5 38. Rc7 Rc4 39. Rxf7 Rxc2 40. Rf3 e4 41. Rf6 Kg7 0-1

[Event "World Junior U20 Open 2018"]
[Site "Gebze"]
[Date "2018.09.07"]
[Round "3.47"]
[White "Piyumantha, M Sasith Nipun"]
[Black "Miciano, John Marvin"]
[Result "1/2-1/2"]
[ECO "E90"]
[WhiteElo "2139"]
[BlackElo "2374"]
[Annotator "NA"]
[PlyCount "95"]
[EventDate "2018.09.05"]
[EventType "swiss"]
[EventCountry "TUR"]
[SourceTitle "playchess.com"]
[Source "ChessBase"]
[SourceQuality "1"]
[TimeControl "40/5400+30:1800+30"]

1. d4 {[%emt 0:00:30]} g6 {[%emt 0:00:30]} 2. c4 {[%emt 0:00:00]} Bg7 {[%emt 0:00:30]} 3. Nf3 {[%emt 0:00:00]} Nf6 {[%emt 0:01:30]} 4. Nc3 {[%emt 0:00:30]} O-O {[%emt 0:00:30]} 5. e4 {[%emt 0:00:30]} d6 {[%emt 0:06:30]} 6. h3 {[%emt 0:02:30]} a6 {[%emt 0:00:30]} 7. Be3 {[%emt 0:00:30]} c6 {[%emt 0:00:30]} 8. Bd3 {[%emt 0:00:30]} b5 {[%emt 0:00:30] E90: King's Indian: Classical: Early deviations and 6 h3} 9. O-O {[%emt 0:00:30]} Nbd7 {[%emt 0:03:30]} 10. a4 $146 {[%emt 0:16:30]} ({Predecessor:} 10. Rc1 e5 11. d5 bxc4 12. Bxc4 c5 13. a3 Nb6 14. Be2 Nh5 15. Re1 a5 16. b4 axb4 17. axb4 cxb4 {0-1 (37) Zhang,Z (2361)-Stupak,K (2556) Qinhuangdao 2018}) 10... b4 {[%emt 0:05:30]} 11. Ne2 {[%emt 0:00:30]} c5 {[%emt 0:02:30]} 12. d5 {[%emt 0:01:30]} a5 {[%emt 0:07:30]} 13. Rb1 {[%emt 0:00:30]} Qc7 {[%emt 0:00:30]} 14. Qd2 {[%emt 0:01:30]} Re8 {[%emt 0:02:30]} 15. Bh6 {[%emt 0:00:30]} Ne5 {[%emt 0:04:30]} 16. Nxe5 {[%emt 0:02:30]} dxe5 {[%emt 0:00:30]} 17. Bxg7 {[%emt 0:01:30]} Kxg7 {[%emt 0:00:30]} 18. f4 {[%emt 0:01:30]} exf4 {[%emt 0:00:30]} 19. Rxf4 {[%emt 0:06:30]} Qe5 {[%emt 0:05:30]} 20. Rbf1 {[%emt 0:00:30]} Kh8 {[%emt 0:00:30]} 21. Qe3 {[%emt 0:00:30]} Ba6 {[%emt 0:04:30]} 22. b3 {[%emt 0:06:30]} ({But not} 22. Qxc5 $6 Rac8 $11) 22... Rac8 {[%emt 0:00:30]} 23. Bc2 {[%emt 0:00:30]} Kg8 {[%emt 0:06:30]} 24. Nc1 {[%emt 0:03:30]} Nd7 {[%emt 0:04:30]} 25. Nd3 {[%emt 0:02:30]} Qc3 {[%emt 0:00:30]} 26. R4f2 {[%emt 0:02:30]} Ne5 {[%emt 0:02:30]} 27. Qe1 {[%emt 0:04:30]} Qxe1 $1 {[%emt 0:02:30]} 28. Rxe1 {[%emt 0:00:00]} f6 {[%emt 0:00:30]} 29. Nxe5 {[%emt 0:00:00]} fxe5 $11 {[%emt 0:00:30]} 30. Ref1 {[%emt 0:00:30]} Rf8 {[%emt 0:02:30]} 31. Rxf8+ {[%emt 0:00:30]} Rxf8 {[%emt 0:00:30]} 32. Rxf8+ {[%emt 0:00:00]} Kxf8 {[%emt 0:00:00]} 33. Kf2 {[%emt 0:00:00]} Kg7 {[%emt 0:00:00]} 34. g4 {[%emt 0:00:30]} Bc8 {[%emt 0:01:30]} 35. Kg3 {[%emt 0:00:00]} g5 {[%emt 0:01:30]} 36. Bd1 {[%emt 0:00:00]} Kf6 {[%emt 0:00:30]} 37. Be2 {[%emt 0:00:30]} h6 {[%emt 0:00:30]} 38. Bd1 {[%emt 0:00:00]} Bd7 {[%emt 0:00:30]} 39. Kf3 {[%emt 0:00:00]} h5 {[%emt 0:01:30]} 40. Kg3 {[%emt 0:00:00]} h4+ {[%emt 0:00:30]} 41. Kf3 {[%emt 0:00:00]} Kf7 {[%emt 0:00:30]} 42. Ke3 {[%emt 0:00:30]} Ke8 {[%emt 0:00:00]} 43. Kd3 {[%emt 0:00:30]} Kd8 {[%emt 0:00:00]} 44. Ke3 {[%emt 0:00:00]} Kc7 {[%emt 0:00:30]} 45. Kd3 {[%emt 0:00:00]} Kd6 {[%emt 0:00:30]} 46. Ke3 {[%emt 0:00:00]} e6 {[%emt 0:00:00]} 47. dxe6 {[%emt 0:00:00]} Bxe6 {[%emt 0:00:00]} 48. Kd3 {[%emt 0:00:00]} 1/2-1/2